[Event "34rd NATO Championship 2024"]
[Site "Rhodes"]
[Date "2024.10.22"]
[Round "2.34"]
[White "Violini, Paolo"]
[Black "Hart, David P O"]
[Result "1/2-1/2"]
[ECO "B21"]
[WhiteElo "1949"]
[BlackElo "2003"]
[Annotator "RC"]
[PlyCount "87"]
[EventDate "2024.09.18"]
[EventType "swiss"]
[EventCountry "GRE"]
[SourceTitle "playchess.com"]
[Source "ChessBase"]
[SourceQuality "1"]
[TimeControl "5400+30"]

1. e4 {[%emt 0:00:08]} c5 {[%emt 0:00:10]} 2. Nf3 {[%emt 0:00:19]} Nc6 {[%emt 0:00:29]} 3. d4 {[%emt 0:00:27]} cxd4 {[%emt 0:00:08]} 4. c3 {[%emt 0:00:08]} dxc3 {[%emt 0:00:49]} 5. Nxc3 {[%emt 0:00:06]} g6 {[%emt 0:01:17]} 6. Bc4 {[%emt 0:01:06]} Bg7 {[%emt 0:01:01]} 7. e5 {[%emt 0:01:12]} Nxe5 {[%emt 0:03:21]} 8. Nxe5 {[%emt 0:00:11]} Bxe5 {[%emt 0:00:09]} 9. Bxf7+ {[%emt 0:00:05]} Kxf7 {[%emt 0:00:23]} 10. Qd5+ {[%emt 0:00:05]} e6 {[%emt 0:00:44]} 11. Qxe5 {[%emt 0:00:07]} Qf6 {[%emt 0:00:36]} 12. Qe2 {[%emt 0:08:03]} d5 {[%emt 0:02:48]} 13. Be3 {[%emt 0:08:16]} Ne7 {[%emt 0:04:34]} 14. Rd1 {[%emt 0:01:37]} Re8 {[%emt 0:01:39]} 15. Bd4 {[%emt 0:00:49]} Qf4 {[%emt 0:13:28]} 16. g3 {[%emt 0:15:50]} Qh6 {[%emt 0:05:35]} 17. Nb5 {[%emt 0:04:19]} Rd8 {[%emt 0:06:13]} 18. Qe5 {[%emt 0:11:48]} Nc6 {[%emt 0:04:19]} 19. Nd6+ {[%emt 0:45:24]} Ke7 {[%emt 0:01:41]} 20. Nxc8+ {[%emt 0:00:00]} Raxc8 {[%emt 0:00:38]} 21. Qf6+ {[%emt 0:00:00]} Kd7 {[%emt 0:01:30]} 22. Qf7+ {[%emt 0:00:00]} Ne7 {[%emt 0:01:34]} 23. Bg7 {[%emt 0:00:00]} Qh3 {[%emt 0:01:57]} 24. Ke2 {[%emt 0:00:00]} Qg2 {[%emt 0:06:29]} 25. Rc1 {[%emt 0:00:00]} Qe4+ {[%emt 0:06:21]} 26. Kd2 {[%emt 0:00:00]} e5 {[%emt 0:07:45]} 27. Rhe1 {[%emt 0:00:00]} Qd4+ {[%emt 0:00:40]} 28. Ke2 {[%emt 0:00:00]} Qxb2+ {[%emt 0:00:10]} 29. Kf3 {[%emt 0:00:00]} e4+ {[%emt 0:04:10]} 30. Kg2 {[%emt 0:00:00]} Qxc1 {[%emt 0:00:20]} 31. Rxc1 {[%emt 0:00:00]} Rxc1 {[%emt 0:00:08]} 32. Bf6 {[%emt 0:00:00]} Re8 {[%emt 0:00:22]} 33. Qxh7 {[%emt 0:01:03]} Rc2 {[%emt 0:01:55]} 34. Bd4 {[%emt 0:02:52]} Rxa2 {[%emt 0:00:57]} 35. h4 {[%emt 0:00:17]} b5 {[%emt 0:01:33]} 36. g4 {[%emt 0:00:18]} b4 {[%emt 0:01:28]} 37. Qg7 {[%emt 0:00:34]} b3 {[%emt 0:01:46]} 38. Qe5 {[%emt 0:01:46]} a5 {[%emt 0:01:10]} 39. Bc5 {[%emt 0:00:22]} a4 {[%emt 0:05:17]} 40. Qd6+ {[%emt 0:00:25]} Kc8 {[%emt 0:00:11]} 41. Qa6+ {[%emt 0:00:50]} Kd7 {[%emt 0:03:06]} 42. Qd6+ {[%emt 0:01:34]} Kc8 {[%emt 0:00:09]} 43. Qe6+ {[%emt 0:00:59]} Kc7 {[%emt 0:02:51]} 44. Qb6+ {[%emt 0:00:48]} 1/2-1/2

[Event "34rd NATO Championship 2024"]
[Site "Rhodes"]
[Date "2024.10.22"]
[Round "2.35"]
[White "Unruh, Charles M"]
[Black "Coulon, Dominic"]
[Result "1-0"]
[ECO "D11"]
[WhiteElo "1911"]
[BlackElo "1813"]
[Annotator "RC"]
[PlyCount "47"]
[EventDate "2024.09.18"]
[EventType "swiss"]
[EventCountry "GRE"]
[SourceTitle "playchess.com"]
[Source "ChessBase"]
[SourceQuality "1"]
[TimeControl "5400+30"]

1. Nf3 {[%emt 0:00:02]} d5 {[%emt 0:00:08]} 2. g3 {[%emt 0:00:05]} c6 {[%emt 0:00:40]} 3. Bg2 {[%emt 0:00:07]} Bg4 {[%emt 0:00:07]} 4. d4 {[%emt 0:01:18]} Nf6 {[%emt 0:03:40]} 5. O-O {[%emt 0:00:52]} e6 {[%emt 0:00:10]} 6. c4 {[%emt 0:00:16]} dxc4 {[%emt 0:03:16]} 7. Ne5 {[%emt 0:00:55]} Nbd7 {[%emt 0:02:14]} 8. Nxg4 {[%emt 0:03:54]} Nxg4 {[%emt 0:00:08]} 9. e4 {[%emt 0:00:11]} Ngf6 {[%emt 0:04:32]} 10. Qe2 {[%emt 0:00:09]} Nb6 {[%emt 0:03:05]} 11. Rd1 {[%emt 0:00:18]} Be7 {[%emt 0:02:01]} 12. Nc3 {[%emt 0:00:30]} O-O {[%emt 0:00:45]} 13. Be3 {[%emt 0:02:33]} Qc7 {[%emt 0:05:46]} 14. Bf4 {[%emt 0:00:11]} Qc8 {[%emt 0:00:36]} 15. d5 {[%emt 0:00:19]} exd5 {[%emt 0:02:37]} 16. exd5 {[%emt 0:00:16]} Re8 {[%emt 0:00:42]} 17. dxc6 {[%emt 0:02:32]} bxc6 {[%emt 0:00:44]} 18. Qc2 {[%emt 0:03:54]} Bc5 {[%emt 0:07:52]} 19. Bd6 {[%emt 0:06:11]} Bxd6 {[%emt 0:05:30]} 20. Rxd6 {[%emt 0:01:19]} Rb8 {[%emt 0:10:04]} 21. Rxc6 {[%emt 0:01:00]} Qg4 {[%emt 0:03:01]} 22. h3 {[%emt 0:00:53]} Qg6 {[%emt 0:01:32]} 23. Ne4 {[%emt 0:01:07]} Nxe4 {[%emt 0:00:27]} 24. Rxg6 {[%emt 0:00:16]} 1-0

[Event "34rd NATO Championship 2024"]
[Site "Rhodes"]
[Date "2024.10.22"]
[Round "2.36"]
[White "Stuhr, Finn"]
[Black "Van de Walle, Rob"]
[Result "0-1"]
[ECO "B20"]
[WhiteElo "1790"]
[BlackElo "1900"]
[Annotator "RC"]
[PlyCount "134"]
[EventDate "2024.09.18"]
[EventType "swiss"]
[EventCountry "GRE"]
[SourceTitle "playchess.com"]
[Source "ChessBase"]
[SourceQuality "1"]
[TimeControl "5400+30"]

1. e4 {[%emt 0:00:06]} c5 {[%emt 0:00:07]} 2. Bc4 {[%emt 0:00:10]} Nc6 {[%emt 0:00:10]} 3. Nc3 {[%emt 0:00:12]} e6 {[%emt 0:00:06]} 4. Nf3 {[%emt 0:00:21]} a6 {[%emt 0:00:11]} 5. a4 {[%emt 0:00:12]} Nf6 {[%emt 0:00:32]} 6. Qe2 {[%emt 0:00:36]} d6 {[%emt 0:01:15]} 7. d3 {[%emt 0:02:10]} h6 {[%emt 0:02:29]} 8. O-O {[%emt 0:00:26]} Be7 {[%emt 0:00:10]} 9. Bb3 {[%emt 0:06:54]} O-O {[%emt 0:04:57]} 10. Be3 {[%emt 0:03:27]} Qc7 {[%emt 0:05:09]} 11. h3 {[%emt 0:00:53]} Bd7 {[%emt 0:02:15]} 12. Qd2 {[%emt 0:00:19]} Nh7 {[%emt 0:11:31]} 13. Rfe1 {[%emt 0:02:23]} Rac8 {[%emt 0:05:29]} 14. Nd1 {[%emt 0:03:10]} b5 {[%emt 0:10:50]} 15. axb5 {[%emt 0:00:12]} axb5 {[%emt 0:00:09]} 16. c3 {[%emt 0:00:33]} Ra8 {[%emt 0:01:36]} 17. Rc1 {[%emt 0:02:29]} c4 {[%emt 0:03:47]} 18. Bc2 {[%emt 0:02:09]} e5 {[%emt 0:04:13]} 19. Nh2 {[%emt 0:06:11]} cxd3 {[%emt 0:07:45]} 20. Qxd3 {[%emt 0:01:48]} Na5 {[%emt 0:01:31]} 21. f3 {[%emt 0:04:18]} Rfc8 {[%emt 0:02:46]} 22. Ng4 {[%emt 0:05:15]} h5 {[%emt 0:01:33]} 23. Nh2 {[%emt 0:02:09]} Nf8 {[%emt 0:04:54]} 24. Nf1 {[%emt 0:02:34]} Be6 {[%emt 0:02:12]} 25. Nd2 {[%emt 0:01:09]} Qb7 {[%emt 0:01:22]} 26. Bf2 {[%emt 0:00:54]} Nd7 {[%emt 0:01:06]} 27. Kh1 {[%emt 0:01:14]} Nc4 {[%emt 0:02:51]} 28. Nb3 {[%emt 0:03:26]} Ndb6 {[%emt 0:04:02]} 29. Rb1 {[%emt 0:00:59]} Qc6 {[%emt 0:01:36]} 30. Bxb6 {[%emt 0:02:27]} Qxb6 {[%emt 0:01:31]} 31. Ne3 {[%emt 0:00:24]} Nxe3 {[%emt 0:00:07]} 32. Rxe3 {[%emt 0:00:43]} Bg5 {[%emt 0:00:57]} 33. Ree1 {[%emt 0:01:17]} Bc4 {[%emt 0:03:00]} 34. Qd1 {[%emt 0:00:03]} Qf2 {[%emt 0:01:36]} 35. Rg1 {[%emt 0:03:46]} Bf4 {[%emt 0:01:35]} 36. Qe1 {[%emt 0:00:25]} Qxc2 {[%emt 0:13:10]} 37. Na1 {[%emt 0:43:16]} Rxa1 {[%emt 0:00:00]} 38. Rxa1 {[%emt 0:00:00]} Qxb2 {[%emt 0:00:00]} 39. g3 {[%emt 0:00:00]} Bd2 {[%emt 0:00:00]} 40. Qd1 {[%emt 0:00:00]} Bxc3 {[%emt 0:00:00]} 41. Rc1 {[%emt 0:00:00]} Bd4 {[%emt 0:00:00]} 42. Rg2 {[%emt 0:00:00]} Qb4 {[%emt 0:00:00]} 43. f4 {[%emt 0:00:00]} g6 {[%emt 0:00:00]} 44. g4 {[%emt 0:00:00]} hxg4 {[%emt 0:00:00]} 45. Qxg4 {[%emt 0:00:00]} Rf8 {[%emt 0:02:04]} 46. f5 {[%emt 0:00:00]} Kg7 {[%emt 0:00:05]} 47. Qh5 {[%emt 0:00:00]} Rg8 {[%emt 0:01:37]} 48. Qg5 {[%emt 0:00:00]} Qa3 {[%emt 0:00:37]} 49. Rg3 {[%emt 0:00:00]} Qa8 {[%emt 0:00:01]} 50. Rg4 {[%emt 0:00:00]} d5 {[%emt 0:00:25]} 51. Qe7 {[%emt 0:00:00]} Qd8 {[%emt 0:01:10]} 52. f6+ {[%emt 0:00:00]} Kh6 {[%emt 0:00:10]} 53. Qxf7 {[%emt 0:00:00]} Be3 {[%emt 0:00:33]} 54. Rh4+ {[%emt 0:00:00]} Kg5 {[%emt 0:00:01]} 55. Rg4+ {[%emt 0:00:00]} Kh5 {[%emt 0:00:04]} 56. Qh7+ {[%emt 0:00:00]} Bh6 {[%emt 0:00:02]} 57. Rcg1 {[%emt 0:00:00]} g5 {[%emt 0:00:01]} 58. Qf5 {[%emt 0:00:00]} Qc8 {[%emt 0:01:28]} 59. Qxe5 {[%emt 0:00:41]} Be2 {[%emt 0:01:25]} 60. R4g3 {[%emt 0:01:53]} dxe4 {[%emt 0:00:30]} 61. h4 {[%emt 0:03:19]} Bf3+ {[%emt 0:00:25]} 62. Kh2 {[%emt 0:01:03]} Qc2+ {[%emt 0:00:01]} 63. Kh3 {[%emt 0:00:25]} Qc8+ {[%emt 0:00:01]} 64. Kh2 {[%emt 0:01:23]} Kxh4 {[%emt 0:00:34]} 65. f7 {[%emt 0:02:35]} Rg6 {[%emt 0:00:19]} 66. Rxf3 {[%emt 0:01:02]} exf3 {[%emt 0:00:29]} 67. Qe4+ {[%emt 0:00:09]} Kh5 {[%emt 0:03:28]} 0-1

[Event "34rd NATO Championship 2024"]
[Site "Rhodes"]
[Date "2024.10.22"]
[Round "2.37"]
[White "Kruit, Erik"]
[Black "Echavarria Hidalgo, Fernando"]
[Result "1-0"]
[ECO "B92"]
[WhiteElo "1899"]
[BlackElo "1802"]
[Annotator "NA RC"]
[PlyCount "103"]
[EventDate "2024.09.18"]
[EventType "swiss"]
[EventCountry "GRE"]
[SourceTitle "playchess.com"]
[Source "ChessBase"]
[SourceQuality "1"]
[TimeControl "5400+30"]

1. e4 {[%emt 0:00:03]} c5 {[%emt 0:00:10]} 2. Nf3 {[%emt 0:00:23]} d6 {[%emt 0:00:39]} 3. d4 {[%emt 0:00:47]} cxd4 {[%emt 0:00:10]} 4. Nxd4 {[%emt 0:00:21]} Nf6 {[%emt 0:00:32]} 5. Nc3 {[%emt 0:00:35]} a6 {[%emt 0:00:12]} 6. f3 {[%emt 0:02:25]} e5 {[%emt 0:00:12]} 7. Nb3 {[%emt 0:01:04]} Be6 {[%emt 0:01:38]} 8. Be3 {[%emt 0:06:38]} Be7 {[%emt 0:02:14]} 9. Be2 {[%emt 0:01:31]} O-O {[%emt 0:00:13] B92: Sizilianisch (Najdorf-Variante mit 6.Le2).} 10. h4 {[%emt 0:01:55]} d5 {[%emt 0:06:34]} 11. exd5 {[%emt 0:00:21]} Nxd5 {[%emt 0:00:29]} 12. Bf2 {[%emt 0:00:33]} Nxc3 {[%emt 0:01:30]} 13. bxc3 {[%emt 0:00:08]} Qc7 {[%emt 0:03:34]} 14. Qd3 {[%emt 0:06:54]} Rc8 {[%emt 0:02:31]} 15. O-O {[%emt 0:00:27]} Qxc3 {[%emt 0:00:59]} 16. Qe4 {[%emt 0:00:50]} Qc7 {[%emt 0:06:24]} (16... Qxc2 $2 {loses.} 17. Bd3 f5 18. Qxe5 $18) (16... f5 $19 17. Qxb7 Nd7) 17. c4 {[%emt 0:07:20]} (17. Rfe1 $17) 17... Nd7 {[%emt 0:02:45]} (17... Bxc4 $2 {loses.} 18. Rac1 $18) 18. Rac1 {[%emt 0:05:00]} Nc5 {[%emt 0:09:39]} 19. Qb1 {[%emt 0:02:39]} Rd8 {[%emt 0:06:56]} 20. Kh1 {[%emt 0:03:09]} Rac8 {[%emt 0:01:38]} 21. Bg3 {[%emt 0:02:51]} f5 {[%emt 0:09:24]} 22. Nxc5 {[%emt 0:04:29]} Bxc5 {[%emt 0:01:24]} 23. Bd3 {[%emt 0:00:23]} Qd7 $19 {[%emt 0:08:29]} 24. Rfd1 {[%emt 0:00:56]} Bd4 {[%emt 0:00:59]} 25. f4 {[%emt 0:12:53]} Rc6 {[%emt 0:05:19]} 26. c5 {[%emt 0:02:49]} e4 {[%emt 0:06:14]} 27. Bxe4 {[%emt 0:09:49]} fxe4 {[%emt 0:00:40]} 28. Bf2 {[%emt 0:00:09]} Qe7 {[%emt 0:04:52]} 29. Bxd4 {[%emt 0:01:29]} Qxh4+ {[%emt 0:00:24]} 30. Kg1 {[%emt 0:00:11]} Bc8 {[%emt 0:05:12]} 31. Qxe4 {[%emt 0:01:05]} Rh6 {[%emt 0:00:35]} 32. Re1 {[%emt 0:06:08]} Qh1+ {[%emt 0:03:02]} 33. Kf2 {[%emt 0:00:09]} Qh4+ {[%emt 0:00:13]} 34. Ke3 {[%emt 0:00:15]} Re6 {[%emt 0:02:38]} 35. Be5 {[%emt 0:00:16]} Qg3+ {[%emt 0:00:47]} 36. Qf3 {[%emt 0:04:29]} Qg6 {[%emt 0:02:44]} 37. Red1 {[%emt 0:03:22]} Qe8 {[%emt 0:01:19]} 38. Rxd8 {[%emt 0:01:56]} Qxd8 {[%emt 0:00:14]} 39. Rd1 {[%emt 0:00:14]} Qe8 {[%emt 0:00:29]} 40. Kf2 {[%emt 0:01:48]} Rc6 {[%emt 0:06:33]} 41. Bd6 {[%emt 0:00:37]} Qe6 {[%emt 0:00:00]} 42. Rd2 {[%emt 0:00:36]} Bd7 {[%emt 0:00:00]} 43. Re2 {[%emt 0:00:26]} Qf5 {[%emt 0:00:00]} 44. Qb3+ {[%emt 0:00:46]} Kh8 {[%emt 0:00:00]} 45. Qxb7 {[%emt 0:00:24]} h6 {[%emt 0:00:00]} 46. Qb2 {[%emt 0:02:12]} Kh7 {[%emt 0:00:15]} 47. Re7 {[%emt 0:00:15]} Qg4 {[%emt 0:01:00]} 48. Qb7 {[%emt 0:01:34]} Qh4+ {[%emt 0:00:55]} 49. Kg1 {[%emt 0:00:20]} Rxd6 {[%emt 0:01:35]} 50. cxd6 {[%emt 0:00:21]} Qxf4 {[%emt 0:00:32]} 51. Qe4+ {[%emt 0:00:57]} Qf5 {[%emt 0:00:21]} 52. Qxf5+ {[%emt 0:00:13]} 1-0

[Event "34rd NATO Championship 2024"]
[Site "Rhodes"]
[Date "2024.10.22"]
[Round "2.38"]
[White "Farrell, John"]
[Black "Papler, Peter"]
[Result "1/2-1/2"]
[ECO "A22"]
[WhiteElo "1898"]
[BlackElo "1780"]
[Annotator "NA RC"]
[PlyCount "108"]
[EventDate "2024.09.18"]
[EventType "swiss"]
[EventCountry "GRE"]
[SourceTitle "playchess.com"]
[Source "ChessBase"]
[SourceQuality "1"]
[TimeControl "5400+30"]

1. c4 {[%emt 0:00:03]} d6 {[%emt 0:00:10]} 2. g3 {[%emt 0:00:08]} Nf6 {[%emt 0:00:14]} 3. Bg2 {[%emt 0:00:08]} c6 {[%emt 0:00:09]} 4. Nc3 {[%emt 0:00:12]} Qc7 {[%emt 0:00:26]} 5. d4 {[%emt 0:02:05]} e5 {[%emt 0:00:13]} 6. e4 {[%emt 0:00:20]} Be7 {[%emt 0:00:37]} 7. Nge2 {[%emt 0:00:43] A22: English Opening: 1...e5 2 Nc3 Nf6.} O-O {[%emt 0:01:42]} 8. O-O {[%emt 0:00:06]} Be6 {[%emt 0:01:23]} 9. d5 {[%emt 0:00:24]} Bd7 {[%emt 0:00:22]} 10. h3 {[%emt 0:01:20]} Na6 {[%emt 0:03:28]} 11. Be3 {[%emt 0:00:50]} Rad8 {[%emt 0:02:28]} 12. Kh2 {[%emt 0:00:10]} c5 {[%emt 0:01:03]} 13. f4 {[%emt 0:02:50]} Rfe8 {[%emt 0:00:57]} 14. f5 {[%emt 0:00:19]} Qb8 {[%emt 0:04:59]} 15. g4 {[%emt 0:00:24]} Kh8 {[%emt 0:00:36]} 16. Ng3 {[%emt 0:01:25]} Nc7 {[%emt 0:00:18]} 17. g5 {[%emt 0:00:23]} Ng8 {[%emt 0:00:16]} 18. Nh5 {[%emt 0:07:42]} f6 {[%emt 0:03:54]} 19. g6 {[%emt 0:04:34]} h6 {[%emt 0:01:32]} 20. Qd2 {[%emt 0:02:41]} Bf8 {[%emt 0:00:38]} 21. Rf3 {[%emt 0:01:49]} Re7 {[%emt 0:01:11]} 22. Rg3 {[%emt 0:00:11]} Ne8 {[%emt 0:00:32]} 23. Rg4 {[%emt 0:00:41]} b5 {[%emt 0:01:00]} 24. Rh4 {[%emt 0:00:55]} bxc4 {[%emt 0:01:33]} 25. Rg1 {[%emt 0:06:09]} Qb6 {[%emt 0:01:56]} 26. Bf1 {[%emt 0:00:09]} Rb8 {[%emt 0:01:05]} 27. Rg2 {[%emt 0:00:13]} ({Don't do} 27. Bxc4 $6 Qxb2 28. Rb1 Qxd2+ 29. Bxd2 Rb4 30. Rxb4 cxb4 $16) 27... Bc8 {[%emt 0:07:12]} 28. Ng3 {[%emt 0:05:06]} Ba6 {[%emt 0:05:17]} 29. Nh1 {[%emt 0:00:41]} Reb7 {[%emt 0:00:23] [#]} 30. Qc1 $1 {[%emt 0:00:10]} Qc7 {[%emt 0:02:23]} 31. Rc2 {[%emt 0:00:57]} Qa5 {[%emt 0:04:26]} 32. Nf2 {[%emt 0:00:21]} Rb4 {[%emt 0:01:50]} 33. Ng4 {[%emt 0:00:17]} Qb6 {[%emt 0:00:39]} 34. Bxh6 {[%emt 0:03:38]} gxh6 {[%emt 0:01:32]} 35. Nxh6 {[%emt 0:00:11]} Nxh6 {[%emt 0:01:22]} 36. Rxh6+ {[%emt 0:00:08]} Kg8 {[%emt 0:00:21]} 37. Nd1 {[%emt 0:01:13]} Rb7 {[%emt 0:01:59]} 38. Rh4 {[%emt 0:01:22] [#]} c3 $19 {[%emt 0:04:38]} 39. b3 {[%emt 0:04:17]} Bxf1 {[%emt 0:01:10]} 40. Nxc3 {[%emt 0:00:07]} Ba6 {[%emt 0:02:10]} 41. Qd1 {[%emt 0:00:55]} Qc7 {[%emt 0:01:45]} 42. Rg2 {[%emt 0:01:21]} Bg7 {[%emt 0:01:14]} 43. Rh7 {[%emt 0:01:53]} Qa5 {[%emt 0:02:02]} 44. h4 {[%emt 0:00:33]} Rd4 {[%emt 0:00:11]} 45. Qc1 {[%emt 0:03:52]} Qb4 {[%emt 0:02:53]} 46. h5 {[%emt 0:00:26]} Rxe4 {[%emt 0:00:14]} 47. Nxe4 {[%emt 0:00:23]} Qxe4 {[%emt 0:00:09]} 48. h6 {[%emt 0:00:12]} Qxf5 {[%emt 0:11:30]} 49. hxg7 {[%emt 0:00:28]} Rxg7 {[%emt 0:00:47]} 50. Rxg7+ {[%emt 0:00:57]} Kxg7 {[%emt 0:00:49]} 51. Qa3 {[%emt 0:00:12]} Qh5+ {[%emt 0:01:55]} 52. Kg1 {[%emt 0:01:02]} Qd1+ {[%emt 0:01:07]} 53. Kh2 {[%emt 0:00:17]} Qh5+ {[%emt 0:00:10]} 54. Kg1 {[%emt 0:00:08]} Qd1+ {[%emt 0:24:40]} 1/2-1/2

[Event "34rd NATO Championship 2024"]
[Site "Rhodes"]
[Date "2024.10.22"]
[Round "2.39"]
[White "Kries, Yvon"]
[Black "Heran-Boily, Samuel"]
[Result "1/2-1/2"]
[ECO "D00"]
[WhiteElo "1765"]
[BlackElo "1898"]
[Annotator "NA RC"]
[PlyCount "53"]
[EventDate "2024.09.18"]
[EventType "swiss"]
[EventCountry "GRE"]
[SourceTitle "playchess.com"]
[Source "ChessBase"]
[SourceQuality "1"]
[TimeControl "5400+30"]

1. d4 {[%emt 0:00:03]} d5 {[%emt 0:00:04]} 2. Nc3 {[%emt 0:00:07]} Nf6 {[%emt 0:00:06]} 3. Bf4 {[%emt 0:00:13]} a6 {[%emt 0:00:06]} 4. Nf3 {[%emt 0:00:38]} b5 {[%emt 0:00:13]} 5. e3 {[%emt 0:01:29]} e6 {[%emt 0:00:08]} 6. Bd3 {[%emt 0:01:36] D00: 1 d4 d5: Unusual lines.} Bb7 {[%emt 0:00:11]} 7. O-O {[%emt 0:01:38]} c5 {[%emt 0:00:04]} 8. dxc5 {[%emt 0:03:26]} Bxc5 {[%emt 0:00:06]} 9. Qe2 {[%emt 0:02:35]} Nbd7 {[%emt 0:07:24]} 10. Rab1 {[%emt 0:06:10]} Rc8 {[%emt 0:02:54]} 11. Ne5 {[%emt 0:06:12]} O-O {[%emt 0:05:59]} 12. Rfd1 {[%emt 0:05:47]} Bb4 {[%emt 0:07:15]} (12... Be7 $15) 13. a4 {[%emt 0:09:55]} Bxc3 {[%emt 0:11:18]} 14. bxc3 {[%emt 0:00:24]} Nc5 {[%emt 0:00:22]} 15. axb5 {[%emt 0:02:22]} Na4 $2 {[%emt 0:03:35]} (15... Nfe4 $11 {and Black stays safe.} 16. bxa6 Ba8) 16. Qe1 {[%emt 0:09:17]} Nxc3 {[%emt 0:00:49]} 17. bxa6 {[%emt 0:01:26]} Ba8 {[%emt 0:00:27]} 18. Rb3 {[%emt 0:02:22]} Nxd1 {[%emt 0:00:19]} 19. Qxd1 {[%emt 0:00:06]} Qa5 {[%emt 0:08:03]} (19... Ne4 $1 $11) 20. h4 $11 {[%emt 0:10:16]} (20. h3 $16) 20... Ne4 {[%emt 0:08:36]} 21. Nd7 {[%emt 0:11:09]} Rfd8 {[%emt 0:00:13]} 22. Nb6 {[%emt 0:01:23]} Rc6 {[%emt 0:04:31]} 23. Bxe4 {[%emt 0:03:15]} Rxb6 {[%emt 0:00:53]} 24. Bc7 {[%emt 0:01:07]} Rdd6 {[%emt 0:06:30]} 25. Bxb6 {[%emt 0:03:53]} Rxb6 {[%emt 0:00:23]} 26. Rxb6 {[%emt 0:00:21]} Qxb6 {[%emt 0:00:09]} 27. Bd3 {[%emt 0:00:18]} 1/2-1/2

[Event "34rd NATO Championship 2024"]
[Site "Rhodes"]
[Date "2024.10.22"]
[Round "2.40"]
[White "Woolf, Ben"]
[Black "Rosseel, Kimball"]
[Result "1/2-1/2"]
[ECO "B20"]
[WhiteElo "1747"]
[BlackElo "1896"]
[Annotator "NA RC"]
[PlyCount "50"]
[EventDate "2024.09.18"]
[EventType "swiss"]
[EventCountry "GRE"]
[SourceTitle "playchess.com"]
[Source "ChessBase"]
[SourceQuality "1"]
[TimeControl "5400+30"]

1. e4 {[%emt 0:00:06]} e6 {[%emt 0:00:08]} 2. b3 {[%emt 0:00:10]} d5 {[%emt 0:00:49]} 3. Bb2 {[%emt 0:00:12]} c5 {[%emt 0:02:47]} 4. Bb5+ {[%emt 0:02:01]} Nc6 {[%emt 0:00:12]} 5. exd5 {[%emt 0:02:27]} exd5 {[%emt 0:00:10]} 6. Nf3 {[%emt 0:04:38]} Nf6 {[%emt 0:06:36]} 7. O-O {[%emt 0:01:20]} Be7 {[%emt 0:00:39]} 8. d3 {[%emt 0:01:18]} O-O {[%emt 0:03:25]} 9. Bxc6 {[%emt 0:00:05]} bxc6 {[%emt 0:00:11]} 10. Nbd2 {[%emt 0:04:42]} h6 {[%emt 0:03:59]} 11. Re1 {[%emt 0:02:36]} Be6 {[%emt 0:01:53]} 12. Re2 {[%emt 0:08:08]} Nd7 {[%emt 0:06:25]} 13. Qe1 {[%emt 0:03:12]} Bf6 {[%emt 0:03:51]} 14. Bxf6 {[%emt 0:04:11]} Qxf6 {[%emt 0:00:22]} 15. a4 {[%emt 0:10:57]} Rae8 {[%emt 0:05:05]} 16. Rb1 {[%emt 0:07:20]} g5 {[%emt 0:08:35]} 17. h3 {[%emt 0:03:05]} h5 {[%emt 0:02:30]} 18. Re3 $11 {[%emt 0:08:24]} (18. Nf1 $14) 18... Kh7 {[%emt 0:10:29]} 19. Qe2 {[%emt 0:03:36]} g4 {[%emt 0:12:40]} 20. Ne5 {[%emt 0:06:14]} Nxe5 {[%emt 0:00:31]} 21. Rxe5 {[%emt 0:00:17]} Qg6 {[%emt 0:00:46]} 22. h4 {[%emt 0:05:18]} Bd7 {[%emt 0:02:36]} 23. Kf1 {[%emt 0:04:40]} Re6 {[%emt 0:03:34]} 24. Rxe6 {[%emt 0:01:25]} fxe6 {[%emt 0:04:00]} 25. g3 {[%emt 0:02:13]} Qf6 {[%emt 0:03:01]} 1/2-1/2

[Event "34rd NATO Championship 2024"]
[Site "Rhodes"]
[Date "2024.10.22"]
[Round "2.41"]
[White "Skaburskis, Martynas"]
[Black "Hater, Andrew"]
[Result "1-0"]
[ECO "D02"]
[WhiteElo "1893"]
[BlackElo "1767"]
[Annotator "NA RC"]
[PlyCount "83"]
[EventDate "2024.09.18"]
[EventType "swiss"]
[EventCountry "GRE"]
[SourceTitle "playchess.com"]
[Source "ChessBase"]
[SourceQuality "1"]
[TimeControl "5400+30"]

1. d4 {[%emt 0:00:05]} d5 {[%emt 0:00:09]} 2. Bf4 {[%emt 0:00:11]} Nf6 {[%emt 0:00:20]} 3. Nf3 {[%emt 0:00:27]} Bf5 {[%emt 0:01:04]} 4. e3 {[%emt 0:01:07]} e6 {[%emt 0:02:49]} 5. Bd3 {[%emt 0:00:33]} Ne4 {[%emt 0:01:45]} 6. c3 {[%emt 0:05:19] D02: 1 d4 d5 2 Nf3 sidelines, including 2...Nf6 3 g3 and 2...Nf6 3 Bf4.} Bd6 {[%emt 0:06:27]} 7. Bg3 {[%emt 0:02:07]} O-O {[%emt 0:07:09]} 8. Qc2 {[%emt 0:04:05]} c5 {[%emt 0:04:25]} 9. Nbd2 {[%emt 0:02:12]} Nxd2 {[%emt 0:05:24]} 10. Qxd2 {[%emt 0:00:57]} Bxd3 {[%emt 0:09:35]} 11. Qxd3 {[%emt 0:00:14]} c4 {[%emt 0:01:14]} 12. Qc2 {[%emt 0:01:05]} Nc6 {[%emt 0:03:20]} 13. e4 {[%emt 0:06:13]} h6 {[%emt 0:06:40]} 14. O-O {[%emt 0:10:24]} Bxg3 {[%emt 0:02:25]} 15. hxg3 {[%emt 0:00:28]} Qc7 {[%emt 0:03:23]} 16. exd5 {[%emt 0:04:50]} exd5 {[%emt 0:00:05]} 17. Rfe1 {[%emt 0:00:23]} Rfe8 {[%emt 0:00:23]} 18. Qf5 {[%emt 0:01:27]} Ne7 {[%emt 0:05:50]} 19. Qh5 {[%emt 0:04:00]} Qb6 {[%emt 0:03:59]} (19... Qd7 $11 {should be considered.}) 20. Re2 $11 {[%emt 0:06:14]} Qg6 {[%emt 0:00:22]} 21. Qxg6 {[%emt 0:02:22]} Nxg6 {[%emt 0:00:33]} 22. Rae1 {[%emt 0:00:19]} Kf8 {[%emt 0:01:09]} 23. Ne5 {[%emt 0:00:56]} Nxe5 {[%emt 0:01:41]} 24. dxe5 {[%emt 0:03:40]} Rad8 {[%emt 0:01:37]} 25. Rd1 {[%emt 0:00:27]} Re7 {[%emt 0:00:38]} 26. f4 {[%emt 0:01:17]} Red7 {[%emt 0:02:25]} 27. Rd4 {[%emt 0:00:56]} b5 {[%emt 0:01:53]} 28. Kf2 {[%emt 0:02:08]} a5 {[%emt 0:01:09]} 29. Ke3 {[%emt 0:01:36]} b4 {[%emt 0:01:31]} 30. Rdd2 {[%emt 0:01:43]} Ke7 {[%emt 0:03:23]} 31. g4 {[%emt 0:03:20]} f6 {[%emt 0:02:53]} 32. Kd4 {[%emt 0:01:10]} bxc3 {[%emt 0:03:44]} 33. bxc3 {[%emt 0:00:26]} fxe5+ {[%emt 0:01:05]} 34. Rxe5+ {[%emt 0:00:45]} Kf6 {[%emt 0:01:05]} 35. Rb2 {[%emt 0:00:25]} Re7 {[%emt 0:04:02]} 36. Rxe7 {[%emt 0:07:31]} Kxe7 {[%emt 0:00:07]} 37. Rb5 {[%emt 0:00:24]} Rd6 {[%emt 0:02:58]} 38. Rxd5 {[%emt 0:02:34]} Rg6 {[%emt 0:00:40]} 39. g5 {[%emt 0:01:12]} hxg5 {[%emt 0:00:48]} 40. Rxg5 {[%emt 0:00:20]} Rf6 {[%emt 0:03:40]} 41. Rxg7+ {[%emt 0:00:38]} Kf8 {[%emt 0:00:24]} 42. Rg4 {[%emt 0:00:18]} 1-0